[Event "Titled Tuesday Blitz November 07 Early 2023"]
[White "KorolDimitriy75"]
[Black "Reprintsev, Alexander"]
[BlackFideId "14100541"]
[WhiteElo "2349"]
[BlackElo "2493"]
[Result "0-1"]
[Round "7"]
[TimeControl "180+1"]
[Date "2023.11.07"]
[WhiteClock "0:00:00"]
[BlackClock "0:01:40"]
[Board "134"]

1. d4 {[%clk 0:03:00]}  d5 {[%clk 0:02:56]} 2. c4 {[%clk 0:03:01]}  e5 {[%clk 0:02:56]} 3. Nc3 {[%clk 0:03:00]}  exd4 {[%clk 0:02:56]} 4. Qxd4 {[%clk 0:03:01]}  Nc6 {[%clk 0:02:56]} 5. Qxd5 {[%clk 0:03:01]}  Be6 {[%clk 0:02:56]} 6. Qb5 {[%clk 0:03:01]}  a6 {[%clk 0:02:56]} 7. Qa4 {[%clk 0:03:01]}  Bb4 {[%clk 0:02:54]} 8. e3 {[%clk 0:02:59]}  Qf6 {[%clk 0:02:48]} 9. Bd2 {[%clk 0:02:49]}  O-O-O {[%clk 0:02:48]} 10. Nf3 {[%clk 0:02:37]}  g5 {[%clk 0:02:48]} 11. Be2 {[%clk 0:00:49]}  g4 {[%clk 0:02:47]} 12. Nd4 {[%clk 0:00:48]}  Nxd4 {[%clk 0:02:43]} 13. exd4 {[%clk 0:00:49]}  Qxd4 {[%clk 0:02:41]} 14. O-O-O {[%clk 0:00:48]}  Bxc3 {[%clk 0:02:29]} 15. Bxc3 {[%clk 0:00:49]}  Qf4+ {[%clk 0:02:29]} 16. Kb1 {[%clk 0:00:44]}  Ne7 {[%clk 0:02:22]} 17. Bxh8 {[%clk 0:00:40]}  Rxh8 {[%clk 0:02:15]} 18. f3 {[%clk 0:00:11]}  h5 {[%clk 0:02:04]} 19. Ka1 {[%clk 0:00:09]}  Nc6 {[%clk 0:02:01]} 20. Rhe1 {[%clk 0:00:08]}  Qxh2 {[%clk 0:01:59]} 21. fxg4 {[%clk 0:00:05]}  hxg4 {[%clk 0:01:59]} 22. Rg1 {[%clk 0:00:03]}  Qg3 {[%clk 0:01:59]} 23. Qc2 {[%clk 0:00:02]}  Kb8 {[%clk 0:01:47]} 24. Qc3 {[%clk 0:00:02]}  Qh2 {[%clk 0:01:40]} 25. Rh1 {[%clk 0:00:00]}  Qxh1 {[%clk 0:01:40]} 0-1


[Site "https://www.chess.com"]

[Event "Titled Tuesday Blitz November 07 Early 2023"]
[White "Baches Garcia, Guillermo"]
[Black "Goh, Zi Han"]
[WhiteFideId "2209764"]
[BlackFideId "5819156"]
[WhiteElo "2486"]
[BlackElo "2333"]
[Result "1-0"]
[Round "7"]
[TimeControl "180+1"]
[Date "2023.11.07"]
[WhiteClock "0:00:45"]
[BlackClock "0:00:00"]
[Board "135"]

1. d4 {[%clk 0:03:00]}  d5 {[%clk 0:02:59]} 2. Nf3 {[%clk 0:03:01]}  Nf6 {[%clk 0:02:59]} 3. Bg5 {[%clk 0:03:01]}  e6 {[%clk 0:02:42]} 4. Nbd2 {[%clk 0:03:00]}  c5 {[%clk 0:02:37]} 5. e3 {[%clk 0:03:00]}  Nc6 {[%clk 0:02:37]} 6. c3 {[%clk 0:03:00]}  Be7 {[%clk 0:02:36]} 7. Bd3 {[%clk 0:03:00]}  O-O {[%clk 0:02:35]} 8. O-O {[%clk 0:03:00]}  b6 {[%clk 0:02:26]} 9. Ne5 {[%clk 0:03:00]}  Nxe5 {[%clk 0:02:20]} 10. dxe5 {[%clk 0:03:01]}  Nd7 {[%clk 0:02:20]} 11. Bxe7 {[%clk 0:03:01]}  Qxe7 {[%clk 0:02:20]} 12. f4 {[%clk 0:03:01]}  Rd8 {[%clk 0:02:15]} 13. Qh5 {[%clk 0:02:51]}  Nf8 {[%clk 0:02:15]} 14. Nf3 {[%clk 0:02:42]}  Bb7 {[%clk 0:02:11]} 15. Rad1 {[%clk 0:02:31]}  f5 {[%clk 0:01:47]} 16. exf6 {[%clk 0:02:29]}  Qxf6 {[%clk 0:01:47]} 17. Ne5 {[%clk 0:02:19]}  Rd6 {[%clk 0:01:24]} 18. Rf3 {[%clk 0:02:14]}  d4 {[%clk 0:01:20]} 19. Rh3 {[%clk 0:02:01]}  g6 {[%clk 0:01:13]} 20. Qe2 {[%clk 0:01:59]}  dxc3 {[%clk 0:01:05]} 21. bxc3 {[%clk 0:01:52]}  Rad8 {[%clk 0:01:06]} 22. Re1 {[%clk 0:01:42]}  Nd7 {[%clk 0:00:38]} 23. Nc4 {[%clk 0:01:35]}  Rd5 {[%clk 0:00:26]} 24. e4 {[%clk 0:01:23]}  Rxd3 {[%clk 0:00:21]} 25. Rxd3 {[%clk 0:01:19]}  Ba6 {[%clk 0:00:17]} 26. Qd2 {[%clk 0:01:08]}  Bxc4 {[%clk 0:00:12]} 27. Rxd7 {[%clk 0:01:04]}  Rxd7 {[%clk 0:00:12]} 28. Qxd7 {[%clk 0:01:04]}  Qxc3 {[%clk 0:00:13]} 29. Qe8+ {[%clk 0:00:57]}  Kg7 {[%clk 0:00:13]} 30. Qe7+ {[%clk 0:00:58]}  Kg8 {[%clk 0:00:11]} 31. Rd1 {[%clk 0:00:54]}  Qe3+ {[%clk 0:00:11]} 32. Kh1 {[%clk 0:00:53]}  Bd3 {[%clk 0:00:11]} 33. Qd8+ {[%clk 0:00:53]}  Kg7 {[%clk 0:00:11]} 34. Qd7+ {[%clk 0:00:52]}  Kg8 {[%clk 0:00:10]} 35. Qxd3 {[%clk 0:00:51]}  Qxf4 {[%clk 0:00:10]} 36. Qf3 {[%clk 0:00:47]}  Qc7 {[%clk 0:00:00]} 37. Qf6 {[%clk 0:00:45]} 1-0


[Site "https://www.chess.com"]

[Event "Titled Tuesday Blitz November 07 Early 2023"]
[White "Devaev, Alexander"]
[Black "TheAlienParty"]
[WhiteFideId "4169395"]
[WhiteElo "2470"]
[BlackElo "2255"]
[Result "1-0"]
[Round "7"]
[TimeControl "180+1"]
[Date "2023.11.07"]
[WhiteClock "0:00:35"]
[BlackClock "0:00:28"]
[Board "136"]

1. Nf3 {[%clk 0:03:00]}  d5 {[%clk 0:02:42]} 2. c4 {[%clk 0:02:55]}  c6 {[%clk 0:02:40]} 3. e3 {[%clk 0:02:56]}  Nf6 {[%clk 0:02:39]} 4. b3 {[%clk 0:02:55]}  g6 {[%clk 0:02:38]} 5. Bb2 {[%clk 0:02:55]}  Bg7 {[%clk 0:02:39]} 6. d4 {[%clk 0:02:54]}  O-O {[%clk 0:02:39]} 7. Nbd2 {[%clk 0:02:55]}  Bf5 {[%clk 0:02:36]} 8. Be2 {[%clk 0:02:55]}  Ne4 {[%clk 0:02:36]} 9. O-O {[%clk 0:02:55]}  a5 {[%clk 0:02:33]} 10. Nh4 {[%clk 0:02:51]}  Nxd2 {[%clk 0:02:20]} 11. Qxd2 {[%clk 0:02:51]}  Be6 {[%clk 0:02:15]} 12. Rac1 {[%clk 0:02:38]}  a4 {[%clk 0:02:13]} 13. Nf3 {[%clk 0:02:25]}  axb3 {[%clk 0:02:10]} 14. axb3 {[%clk 0:02:26]}  Na6 {[%clk 0:02:08]} 15. Ra1 {[%clk 0:02:19]}  Qb6 {[%clk 0:02:06]} 16. Ba3 {[%clk 0:02:05]}  Bf6 {[%clk 0:01:59]} 17. Rfb1 {[%clk 0:02:01]}  Qc7 {[%clk 0:01:52]} 18. Rc1 {[%clk 0:01:53]}  dxc4 {[%clk 0:01:43]} 19. bxc4 {[%clk 0:01:48]}  c5 {[%clk 0:01:42]} 20. Rab1 {[%clk 0:01:44]}  Rfd8 {[%clk 0:01:35]} 21. d5 {[%clk 0:01:43]}  Bf5 {[%clk 0:01:34]} 22. Bd3 {[%clk 0:01:34]}  Bg4 {[%clk 0:01:33]} 23. Ne1 {[%clk 0:01:26]}  Be5 {[%clk 0:01:26]} 24. h3 {[%clk 0:01:21]}  Bc8 {[%clk 0:01:24]} 25. f4 {[%clk 0:01:20]}  Bg7 {[%clk 0:01:22]} 26. Nf3 {[%clk 0:01:20]}  Qd6 {[%clk 0:01:17]} 27. e4 {[%clk 0:01:16]}  Nc7 {[%clk 0:01:15]} 28. e5 {[%clk 0:01:11]}  Qd7 {[%clk 0:01:12]} 29. Bxc5 {[%clk 0:01:12]}  b5 {[%clk 0:01:08]} 30. d6 {[%clk 0:01:02]}  exd6 {[%clk 0:01:07]} 31. Bxd6 {[%clk 0:01:02]}  bxc4 {[%clk 0:01:06]} 32. Bxc4 {[%clk 0:01:01]}  Ne8 {[%clk 0:01:04]} 33. Bb5 {[%clk 0:00:55]}  Qa7+ {[%clk 0:01:00]} 34. Bc5 {[%clk 0:00:41]}  Rxd2 {[%clk 0:00:55]} 35. Bxa7 {[%clk 0:00:41]}  Rxa7 {[%clk 0:00:39]} 36. Rxc8 {[%clk 0:00:36]}  Rd3 {[%clk 0:00:32]} 37. Rxe8+ {[%clk 0:00:34]}  Bf8 {[%clk 0:00:28]} 38. Bxd3 {[%clk 0:00:35]} 1-0


[Site "https://www.chess.com"]

[Event "Titled Tuesday Blitz November 07 Early 2023"]
[White "Herman, Daniel"]
[Black "LangesNasenhaar"]
[WhiteFideId "30935008"]
[WhiteElo "2435"]
[BlackElo "2427"]
[Result "0-1"]
[Round "7"]
[TimeControl "180+1"]
[Date "2023.11.07"]
[WhiteClock "0:00:00"]
[BlackClock "0:00:05"]
[Board "139"]

1. e4 {[%clk 0:03:00]}  Nc6 {[%clk 0:02:59]} 2. d4 {[%clk 0:02:59]}  d5 {[%clk 0:02:59]} 3. exd5 {[%clk 0:02:56]}  Qxd5 {[%clk 0:02:59]} 4. Nf3 {[%clk 0:02:56]}  e5 {[%clk 0:02:57]} 5. Nc3 {[%clk 0:02:46]}  Bb4 {[%clk 0:02:57]} 6. Bd2 {[%clk 0:02:40]}  Bxc3 {[%clk 0:02:57]} 7. bxc3 {[%clk 0:02:40]}  e4 {[%clk 0:02:55]} 8. Ng1 {[%clk 0:02:26]}  Nf6 {[%clk 0:02:52]} 9. Ne2 {[%clk 0:02:24]}  O-O {[%clk 0:02:39]} 10. Nf4 {[%clk 0:02:21]}  Qd6 {[%clk 0:02:16]} 11. Bc4 {[%clk 0:02:15]}  Na5 {[%clk 0:02:09]} 12. Be2 {[%clk 0:02:12]}  c5 {[%clk 0:02:08]} 13. O-O {[%clk 0:02:09]}  Be6 {[%clk 0:01:52]} 14. Be3 {[%clk 0:02:02]}  cxd4 {[%clk 0:01:45]} 15. Nxe6 {[%clk 0:01:49]}  Qxe6 {[%clk 0:01:45]} 16. cxd4 {[%clk 0:01:37]}  Rac8 {[%clk 0:01:39]} 17. Rb1 {[%clk 0:01:23]}  b6 {[%clk 0:01:39]} 18. a4 {[%clk 0:01:19]}  Nd5 {[%clk 0:01:36]} 19. Qd2 {[%clk 0:01:07]}  Nc4 {[%clk 0:01:30]} 20. Bxc4 {[%clk 0:01:04]}  Rxc4 {[%clk 0:01:29]} 21. a5 {[%clk 0:01:00]}  Rfc8 {[%clk 0:01:28]} 22. axb6 {[%clk 0:00:56]}  axb6 {[%clk 0:01:29]} 23. Rb2 {[%clk 0:00:51]}  h6 {[%clk 0:01:28]} 24. h3 {[%clk 0:00:42]}  Qc6 {[%clk 0:01:26]} 25. Rc1 {[%clk 0:00:33]}  f5 {[%clk 0:01:25]} 26. g3 {[%clk 0:00:28]}  b5 {[%clk 0:01:16]} 27. Rcb1 {[%clk 0:00:25]}  b4 {[%clk 0:01:15]} 28. Rc1 {[%clk 0:00:22]}  Kh7 {[%clk 0:01:14]} 29. Kh2 {[%clk 0:00:20]}  Qd6 {[%clk 0:01:08]} 30. Kg2 {[%clk 0:00:17]}  g5 {[%clk 0:01:08]} 31. Bxg5 {[%clk 0:00:16]}  hxg5 {[%clk 0:01:07]} 32. Qxg5 {[%clk 0:00:17]}  Qg6 {[%clk 0:01:03]} 33. Qh4+ {[%clk 0:00:17]}  Kg7 {[%clk 0:01:02]} 34. Ra1 {[%clk 0:00:16]}  f4 {[%clk 0:00:46]} 35. Ra7+ {[%clk 0:00:15]}  R4c7 {[%clk 0:00:46]} 36. Rxc7+ {[%clk 0:00:15]}  Rxc7 {[%clk 0:00:46]} 37. Rb3 {[%clk 0:00:13]}  f3+ {[%clk 0:00:42]} 38. Kg1 {[%clk 0:00:13]}  Rxc2 {[%clk 0:00:39]} 39. Rb1 {[%clk 0:00:13]}  e3 {[%clk 0:00:36]} 40. Ra1 {[%clk 0:00:09]}  exf2+ {[%clk 0:00:30]} 41. Kh1 {[%clk 0:00:09]}  b3 {[%clk 0:00:18]} 42. Ra7+ {[%clk 0:00:06]}  Rc7 {[%clk 0:00:17]} 43. Rxc7+ {[%clk 0:00:06]}  Nxc7 {[%clk 0:00:17]} 44. Qe7+ {[%clk 0:00:07]}  Qf7 {[%clk 0:00:15]} 45. Qg5+ {[%clk 0:00:07]}  Kf8 {[%clk 0:00:15]} 46. Qc5+ {[%clk 0:00:05]}  Ke8 {[%clk 0:00:13]} 47. Qc6+ {[%clk 0:00:05]}  Kd8 {[%clk 0:00:10]} 48. Qc1 {[%clk 0:00:02]}  Qd5 {[%clk 0:00:08]} 49. Kh2 {[%clk 0:00:01]}  Ne6 {[%clk 0:00:06]} 50. Qd2 {[%clk 0:00:00]}  Qxd4 {[%clk 0:00:05]} 0-1


[Site "https://www.chess.com"]

[Event "Titled Tuesday Blitz November 07 Early 2023"]
[White "Perez Cruz, Adianet"]
[Black "Mirza, Diana"]
[WhiteFideId "3510115"]
[BlackFideId "2503999"]
[WhiteElo "1974"]
[BlackElo "1994"]
[Result "1-0"]
[Round "7"]
[TimeControl "180+1"]
[Date "2023.11.07"]
[WhiteClock "0:00:15"]
[BlackClock "0:00:02"]
[Board "140"]

1. d4 {[%clk 0:03:00]}  Nf6 {[%clk 0:02:59]} 2. Bg5 {[%clk 0:03:00]}  c6 {[%clk 0:02:59]} 3. Bxf6 {[%clk 0:02:58]}  gxf6 {[%clk 0:02:58]} 4. c3 {[%clk 0:02:58]}  e5 {[%clk 0:02:58]} 5. g3 {[%clk 0:02:57]}  d5 {[%clk 0:02:51]} 6. Bg2 {[%clk 0:02:56]}  Bf5 {[%clk 0:02:51]} 7. Nf3 {[%clk 0:02:48]}  Nd7 {[%clk 0:02:43]} 8. Nbd2 {[%clk 0:02:40]}  h5 {[%clk 0:02:38]} 9. Nh4 {[%clk 0:02:34]}  Bg6 {[%clk 0:02:31]} 10. Qb3 {[%clk 0:02:30]}  Qb6 {[%clk 0:02:26]} 11. Nxg6 {[%clk 0:02:13]}  fxg6 {[%clk 0:02:23]} 12. Qxb6 {[%clk 0:02:07]}  axb6 {[%clk 0:02:23]} 13. h4 {[%clk 0:01:59]}  Bd6 {[%clk 0:02:22]} 14. e3 {[%clk 0:01:58]}  Ke7 {[%clk 0:02:20]} 15. a3 {[%clk 0:01:55]}  f5 {[%clk 0:02:14]} 16. Nf3 {[%clk 0:01:50]}  e4 {[%clk 0:02:13]} 17. Ng5 {[%clk 0:01:49]}  Kf6 {[%clk 0:02:07]} 18. Kd2 {[%clk 0:01:50]}  Nf8 {[%clk 0:02:05]} 19. Nh3 {[%clk 0:01:41]}  Ne6 {[%clk 0:02:03]} 20. Nf4 {[%clk 0:01:39]}  Bxf4 {[%clk 0:02:00]} 21. gxf4 {[%clk 0:01:40]}  c5 {[%clk 0:01:59]} 22. Bh3 {[%clk 0:01:37]}  Ra5 {[%clk 0:01:53]} 23. Rhg1 {[%clk 0:01:35]}  Rb5 {[%clk 0:01:53]} 24. Kc2 {[%clk 0:01:34]}  Rc8 {[%clk 0:01:48]} 25. a4 {[%clk 0:01:32]}  Ra5 {[%clk 0:01:45]} 26. Kb3 {[%clk 0:01:26]}  Rca8 {[%clk 0:01:37]} 27. Bf1 {[%clk 0:01:15]}  Nc7 {[%clk 0:01:20]} 28. Be2 {[%clk 0:01:10]}  b5 {[%clk 0:01:14]} 29. dxc5 {[%clk 0:01:07]}  bxa4+ {[%clk 0:01:12]} 30. Kc2 {[%clk 0:00:51]}  Rxc5 {[%clk 0:01:11]} 31. Rgd1 {[%clk 0:00:48]}  b5 {[%clk 0:01:09]} 32. Rd4 {[%clk 0:00:48]}  Ne6 {[%clk 0:01:05]} 33. Rb4 {[%clk 0:00:48]}  Nc7 {[%clk 0:00:43]} 34. Rd1 {[%clk 0:00:48]}  Ke6 {[%clk 0:00:39]} 35. Rg1 {[%clk 0:00:46]}  Kf7 {[%clk 0:00:36]} 36. Rd4 {[%clk 0:00:41]}  a3 {[%clk 0:00:26]} 37. b4 {[%clk 0:00:41]}  Rc6 {[%clk 0:00:16]} 38. Kb3 {[%clk 0:00:41]}  a2 {[%clk 0:00:16]} 39. Ra1 {[%clk 0:00:40]}  Ne6 {[%clk 0:00:09]} 40. Rxd5 {[%clk 0:00:37]}  Rac8 {[%clk 0:00:06]} 41. Kxa2 {[%clk 0:00:18]}  Rxc3 {[%clk 0:00:06]} 42. Rd7+ {[%clk 0:00:17]}  Kf6 {[%clk 0:00:06]} 43. Bxb5 {[%clk 0:00:16]}  Rc2+ {[%clk 0:00:03]} 44. Kb1 {[%clk 0:00:16]}  Rxf2 {[%clk 0:00:03]} 45. Rd6 {[%clk 0:00:12]}  Rcc2 {[%clk 0:00:03]} 46. Raa6 {[%clk 0:00:12]}  Rb2+ {[%clk 0:00:03]} 47. Kc1 {[%clk 0:00:13]}  Rbc2+ {[%clk 0:00:03]} 48. Kd1 {[%clk 0:00:13]}  Rb2 {[%clk 0:00:02]} 49. Rxe6+ {[%clk 0:00:13]}  Kf7 {[%clk 0:00:03]} 50. Rec6 {[%clk 0:00:13]}  Rb1+ {[%clk 0:00:03]} 51. Rc1 {[%clk 0:00:14]}  Rbb2 {[%clk 0:00:02]} 52. Ra7+ {[%clk 0:00:15]}  Kf8 {[%clk 0:00:02]} 53. Rc8# {[%clk 0:00:15]} 1-0


[Site "https://www.chess.com"]

[Event "Titled Tuesday Blitz November 07 Early 2023"]
[White "Mayaud, Raphael"]
[Black "Bazilius, Augustinas"]
[WhiteFideId "627151"]
[BlackFideId "12832251"]
[WhiteElo "2354"]
[BlackElo "2501"]
[Result "0-1"]
[Round "7"]
[TimeControl "180+1"]
[Date "2023.11.07"]
[WhiteClock "0:00:20"]
[BlackClock "0:00:20"]
[Board "142"]

1. d4 {[%clk 0:02:53]}  Nf6 {[%clk 0:02:57]} 2. Bg5 {[%clk 0:02:53]}  Ne4 {[%clk 0:02:57]} 3. Bf4 {[%clk 0:02:53]}  d5 {[%clk 0:02:52]} 4. e3 {[%clk 0:02:53]}  g6 {[%clk 0:02:52]} 5. Bd3 {[%clk 0:02:53]}  Bg7 {[%clk 0:02:47]} 6. Bxe4 {[%clk 0:02:53]}  dxe4 {[%clk 0:02:48]} 7. Nc3 {[%clk 0:02:53]}  f5 {[%clk 0:02:46]} 8. Qe2 {[%clk 0:02:53]}  O-O {[%clk 0:02:44]} 9. Qc4+ {[%clk 0:02:53]}  Kh8 {[%clk 0:02:44]} 10. Qxc7 {[%clk 0:02:53]}  Qxc7 {[%clk 0:02:21]} 11. Bxc7 {[%clk 0:02:53]}  Na6 {[%clk 0:02:22]} 12. Be5 {[%clk 0:02:50]}  Bxe5 {[%clk 0:02:19]} 13. dxe5 {[%clk 0:02:51]}  Nb4 {[%clk 0:02:17]} 14. O-O-O {[%clk 0:02:50]}  Nc6 {[%clk 0:02:17]} 15. f4 {[%clk 0:02:48]}  exf3 {[%clk 0:02:15]} 16. Nxf3 {[%clk 0:02:49]}  Be6 {[%clk 0:02:11]} 17. Nb5 {[%clk 0:02:36]}  Rac8 {[%clk 0:01:59]} 18. a3 {[%clk 0:02:28]}  a6 {[%clk 0:01:55]} 19. Nbd4 {[%clk 0:02:29]}  Bd5 {[%clk 0:01:55]} 20. h4 {[%clk 0:02:13]}  Be4 {[%clk 0:01:53]} 21. Nxc6 {[%clk 0:01:49]}  Rxc6 {[%clk 0:01:47]} 22. Rd2 {[%clk 0:01:49]}  Rfc8 {[%clk 0:01:42]} 23. Nd4 {[%clk 0:01:44]}  Rc5 {[%clk 0:01:37]} 24. h5 {[%clk 0:01:40]}  g5 {[%clk 0:01:33]} 25. Ne6 {[%clk 0:01:39]}  Rxc2+ {[%clk 0:01:33]} 26. Rxc2 {[%clk 0:01:36]}  Rxc2+ {[%clk 0:01:34]} 27. Kd1 {[%clk 0:01:35]}  Rxg2 {[%clk 0:01:19]} 28. h6 {[%clk 0:01:13]}  Rxb2 {[%clk 0:01:08]} 29. Re1 {[%clk 0:01:13]}  Rb1+ {[%clk 0:00:56]} 30. Kd2 {[%clk 0:01:13]}  Rxe1 {[%clk 0:00:57]} 31. Kxe1 {[%clk 0:01:14]}  g4 {[%clk 0:00:55]} 32. Kf2 {[%clk 0:01:11]}  Kg8 {[%clk 0:00:53]} 33. Kg3 {[%clk 0:01:08]}  Kf7 {[%clk 0:00:51]} 34. Nf4 {[%clk 0:00:58]}  b5 {[%clk 0:00:44]} 35. Ne2 {[%clk 0:00:45]}  Kg6 {[%clk 0:00:35]} 36. Nd4 {[%clk 0:00:35]}  Kxh6 {[%clk 0:00:32]} 37. Ne6 {[%clk 0:00:35]}  a5 {[%clk 0:00:29]} 38. Nc5 {[%clk 0:00:31]}  b4 {[%clk 0:00:28]} 39. axb4 {[%clk 0:00:32]}  axb4 {[%clk 0:00:29]} 40. Kf4 {[%clk 0:00:32]}  Kg6 {[%clk 0:00:26]} 41. Nb3 {[%clk 0:00:25]}  Bc2 {[%clk 0:00:22]} 42. Nd4 {[%clk 0:00:26]}  b3 {[%clk 0:00:21]} 43. e6 {[%clk 0:00:20]}  b2 {[%clk 0:00:20]} 0-1


[Site "https://www.chess.com"]

[Event "Titled Tuesday Blitz November 07 Early 2023"]
[White "Samaganova, Aleksandra"]
[Black "Estrada Nieto, Julian"]
[WhiteFideId "13800221"]
[BlackFideId "5101018"]
[WhiteElo "2334"]
[BlackElo "2477"]
[Result "1-0"]
[Round "7"]
[TimeControl "180+1"]
[Date "2023.11.07"]
[WhiteClock "0:00:07"]
[BlackClock "0:00:03"]
[Board "144"]

1. c4 {[%clk 0:03:00]}  e5 {[%clk 0:02:59]} 2. Nc3 {[%clk 0:03:00]}  Nf6 {[%clk 0:02:59]} 3. Nf3 {[%clk 0:02:51]}  Nc6 {[%clk 0:02:59]} 4. a3 {[%clk 0:02:51]}  g6 {[%clk 0:02:52]} 5. b4 {[%clk 0:02:49]}  d6 {[%clk 0:02:51]} 6. e3 {[%clk 0:02:49]}  Bg7 {[%clk 0:02:51]} 7. b5 {[%clk 0:02:48]}  Ne7 {[%clk 0:02:41]} 8. d4 {[%clk 0:02:48]}  exd4 {[%clk 0:02:38]} 9. exd4 {[%clk 0:02:48]}  d5 {[%clk 0:02:36]} 10. c5 {[%clk 0:02:48]}  O-O {[%clk 0:02:35]} 11. Be2 {[%clk 0:02:48]}  Ne4 {[%clk 0:02:30]} 12. Bb2 {[%clk 0:02:41]}  Re8 {[%clk 0:01:57]} 13. O-O {[%clk 0:02:40]}  Bg4 {[%clk 0:01:56]} 14. h3 {[%clk 0:02:36]}  Nxc3 {[%clk 0:01:55]} 15. Bxc3 {[%clk 0:02:34]}  Bf5 {[%clk 0:01:49]} 16. Bd3 {[%clk 0:02:29]}  Bxd3 {[%clk 0:01:46]} 17. Qxd3 {[%clk 0:02:28]}  Nf5 {[%clk 0:01:46]} 18. Rfe1 {[%clk 0:02:25]}  Qf6 {[%clk 0:01:36]} 19. Ne5 {[%clk 0:02:04]}  Re7 {[%clk 0:01:15]} 20. Qf3 {[%clk 0:01:34]}  c6 {[%clk 0:01:07]} 21. bxc6 {[%clk 0:01:24]}  bxc6 {[%clk 0:01:07]} 22. Rab1 {[%clk 0:01:21]}  Rae8 {[%clk 0:01:06]} 23. Qd3 {[%clk 0:00:56]}  h5 {[%clk 0:00:49]} 24. Qa6 {[%clk 0:00:41]}  Re6 {[%clk 0:00:39]} 25. Qxa7 {[%clk 0:00:33]}  Nh4 {[%clk 0:00:36]} 26. Rb8 {[%clk 0:00:31]}  Qf5 {[%clk 0:00:25]} 27. Rxe8+ {[%clk 0:00:30]}  Rxe8 {[%clk 0:00:25]} 28. Qd7 {[%clk 0:00:18]}  Rxe5 {[%clk 0:00:21]} 29. Qd8+ {[%clk 0:00:18]}  Kh7 {[%clk 0:00:20]} 30. dxe5 {[%clk 0:00:13]}  Qd3 {[%clk 0:00:16]} 31. Qxh4 {[%clk 0:00:11]}  Qxc3 {[%clk 0:00:15]} 32. f3 {[%clk 0:00:08]}  Bxe5 {[%clk 0:00:14]} 33. Kh1 {[%clk 0:00:08]}  Kg7 {[%clk 0:00:10]} 34. Qf2 {[%clk 0:00:07]}  Bd4 {[%clk 0:00:10]} 35. Qe2 {[%clk 0:00:07]}  Qxc5 {[%clk 0:00:08]} 36. a4 {[%clk 0:00:07]}  Bf6 {[%clk 0:00:07]} 37. Qd3 {[%clk 0:00:06]}  d4 {[%clk 0:00:08]} 38. Qe4 {[%clk 0:00:05]}  Qc4 {[%clk 0:00:07]} 39. a5 {[%clk 0:00:04]}  Qc3 {[%clk 0:00:06]} 40. a6 {[%clk 0:00:04]}  Qc5 {[%clk 0:00:06]} 41. Qd3 {[%clk 0:00:04]}  Qb6 {[%clk 0:00:06]} 42. Ra1 {[%clk 0:00:04]}  Qa7 {[%clk 0:00:06]} 43. Ra2 {[%clk 0:00:03]}  c5 {[%clk 0:00:06]} 44. Qc4 {[%clk 0:00:03]}  Qb6 {[%clk 0:00:05]} 45. a7 {[%clk 0:00:03]}  Qb1+ {[%clk 0:00:05]} 46. Kh2 {[%clk 0:00:04]}  Be5+ {[%clk 0:00:05]} 47. g3 {[%clk 0:00:04]}  Qe1 {[%clk 0:00:05]} 48. a8=Q {[%clk 0:00:04]}  Qxg3+ {[%clk 0:00:05]} 49. Kh1 {[%clk 0:00:05]}  Qxh3+ {[%clk 0:00:06]} 50. Kg1 {[%clk 0:00:05]}  Qg3+ {[%clk 0:00:06]} 51. Kf1 {[%clk 0:00:06]}  Qxf3+ {[%clk 0:00:07]} 52. Ke1 {[%clk 0:00:06]}  Bg3+ {[%clk 0:00:07]} 53. Kd2 {[%clk 0:00:05]}  Qe3+ {[%clk 0:00:08]} 54. Kc2 {[%clk 0:00:05]}  Qf2+ {[%clk 0:00:07]} 55. Kb1 {[%clk 0:00:05]}  Qe1+ {[%clk 0:00:07]} 56. Qc1 {[%clk 0:00:05]}  Qb4+ {[%clk 0:00:07]} 57. Rb2 {[%clk 0:00:06]}  Qc3 {[%clk 0:00:03]} 58. Qxc3 {[%clk 0:00:05]}  dxc3 {[%clk 0:00:04]} 59. Rc2 {[%clk 0:00:06]}  Be5 {[%clk 0:00:04]} 60. Qe4 {[%clk 0:00:05]}  Bd4 {[%clk 0:00:04]} 61. Qd3 {[%clk 0:00:04]}  Kh6 {[%clk 0:00:04]} 62. Rxc3 {[%clk 0:00:04]}  Bxc3 {[%clk 0:00:04]} 63. Qxc3 {[%clk 0:00:04]}  f5 {[%clk 0:00:04]} 64. Qe3+ {[%clk 0:00:04]}  Kh7 {[%clk 0:00:03]} 65. Qxc5 {[%clk 0:00:04]}  h4 {[%clk 0:00:03]} 66. Qf2 {[%clk 0:00:04]}  g5 {[%clk 0:00:02]} 67. Qxf5+ {[%clk 0:00:04]}  Kh6 {[%clk 0:00:03]} 68. Qg4 {[%clk 0:00:04]}  Kg6 {[%clk 0:00:03]} 69. Kc2 {[%clk 0:00:05]}  Kf6 {[%clk 0:00:03]} 70. Kd3 {[%clk 0:00:05]}  Kg6 {[%clk 0:00:04]} 71. Ke4 {[%clk 0:00:06]}  Kf6 {[%clk 0:00:04]} 72. Qf5+ {[%clk 0:00:06]}  Ke7 {[%clk 0:00:03]} 73. Qxg5+ {[%clk 0:00:06]}  Kd6 {[%clk 0:00:04]} 74. Qxh4 {[%clk 0:00:07]}  Kc5 {[%clk 0:00:04]} 75. Qd8 {[%clk 0:00:07]}  Kc4 {[%clk 0:00:03]} 76. Qc8+ {[%clk 0:00:07]} 1-0


[Site "https://www.chess.com"]

[Event "Titled Tuesday Blitz November 07 Early 2023"]
[White "Fernandez Garcia, Gumersindo"]
[Black "Buchenau, Frank"]
[WhiteFideId "24516740"]
[BlackFideId "4604350"]
[WhiteElo "2321"]
[BlackElo "2476"]
[Result "1-0"]
[Round "7"]
[TimeControl "180+1"]
[Date "2023.11.07"]
[WhiteClock "0:00:50"]
[BlackClock "0:00:00"]
[Board "145"]

1. e4 {[%clk 0:03:00]}  e6 {[%clk 0:03:00]} 2. Qe2 {[%clk 0:02:56]}  c5 {[%clk 0:02:58]} 3. b3 {[%clk 0:02:53]}  Nc6 {[%clk 0:02:54]} 4. Bb2 {[%clk 0:02:51]}  Nf6 {[%clk 0:02:50]} 5. Nf3 {[%clk 0:02:49]}  Be7 {[%clk 0:02:42]} 6. g3 {[%clk 0:02:48]}  O-O {[%clk 0:02:38]} 7. Bg2 {[%clk 0:02:48]}  d5 {[%clk 0:02:37]} 8. exd5 {[%clk 0:02:45]}  exd5 {[%clk 0:02:36]} 9. O-O {[%clk 0:02:46]}  Re8 {[%clk 0:02:33]} 10. d3 {[%clk 0:02:30]}  Bf8 {[%clk 0:02:20]} 11. Qd2 {[%clk 0:02:27]}  Bf5 {[%clk 0:02:01]} 12. Nc3 {[%clk 0:02:26]}  d4 {[%clk 0:01:58]} 13. Ne2 {[%clk 0:02:19]}  Qd7 {[%clk 0:01:42]} 14. Rae1 {[%clk 0:02:01]}  Bh3 {[%clk 0:01:40]} 15. Bxh3 {[%clk 0:01:59]}  Qxh3 {[%clk 0:01:40]} 16. Nf4 {[%clk 0:02:00]}  Qd7 {[%clk 0:01:33]} 17. Rxe8 {[%clk 0:01:58]}  Rxe8 {[%clk 0:01:32]} 18. Re1 {[%clk 0:01:59]}  Bd6 {[%clk 0:01:23]} 19. Bc1 {[%clk 0:01:56]}  Nb4 {[%clk 0:01:11]} 20. Rxe8+ {[%clk 0:01:53]}  Qxe8 {[%clk 0:01:11]} 21. a3 {[%clk 0:01:46]}  Bxf4 {[%clk 0:01:07]} 22. gxf4 {[%clk 0:01:42]}  Nbd5 {[%clk 0:01:05]} 23. Qe1 {[%clk 0:01:38]}  Qxe1+ {[%clk 0:01:00]} 24. Nxe1 {[%clk 0:01:38]}  g6 {[%clk 0:00:44]} 25. Bd2 {[%clk 0:01:31]}  Nh5 {[%clk 0:00:42]} 26. Ng2 {[%clk 0:01:31]}  f5 {[%clk 0:00:40]} 27. Kf1 {[%clk 0:01:31]}  Kf7 {[%clk 0:00:40]} 28. Ke2 {[%clk 0:01:29]}  Ke6 {[%clk 0:00:40]} 29. Kf3 {[%clk 0:01:29]}  b5 {[%clk 0:00:37]} 30. b4 {[%clk 0:01:23]}  c4 {[%clk 0:00:30]} 31. dxc4 {[%clk 0:01:19]}  bxc4 {[%clk 0:00:29]} 32. c3 {[%clk 0:01:07]}  dxc3 {[%clk 0:00:26]} 33. Bc1 {[%clk 0:01:07]}  Nb6 {[%clk 0:00:19]} 34. Ke2 {[%clk 0:01:02]}  Kd5 {[%clk 0:00:18]} 35. f3 {[%clk 0:01:00]}  Kc6 {[%clk 0:00:10]} 36. Ke3 {[%clk 0:00:58]}  Nf6 {[%clk 0:00:06]} 37. Kd4 {[%clk 0:00:58]}  Nfd5 {[%clk 0:00:06]} 38. Ne3 {[%clk 0:00:50]}  Nxe3 {[%clk 0:00:06]} 39. Bxe3 {[%clk 0:00:50]}  Nd5 {[%clk 0:00:05]} 40. Bc1 {[%clk 0:00:50]}  c2 {[%clk 0:00:00]} 41. Kxc4 {[%clk 0:00:50]} 1-0


[Site "https://www.chess.com"]